fUSD/lending_fUSD_20250821
["ID","MTS","AMOUNT","RATE_DAILY","PERIOD"]
[380401031,1755735032570,-509.81,0.00013699,2]
[380401032,1755735032580,-1490.8,0.0001589,2]
[380401033,1755735032590,-161.77,0.0001658,2]
[380401034,1755735032603,-1490.8,0.00018082,6]
[380401035,1755735032612,-200.0,0.00018224,2]
[380401036,1755735032622,-545.32445723,0.00018259,2]
[380401037,1755735032762,-258.0,0.00018259,2]
[380401059,1755735038627,-396.67554277,0.00018259,2]
[380401060,1755735038638,-300.0,0.00018259,2]
[380401061,1755735038647,-166.04,0.0001826,2]
[380401062,1755735038657,-250.0,0.0001826,2]
[380401063,1755735038666,-666.0,0.0001826,3]
[380401064,1755735038675,-366.17,0.0001826,2]
[380401065,1755735038685,-123.41445723,0.0001826,2]
[380401066,1755735038697,-76.58554277,0.0001826,2]
[380401067,1755735038706,-1000.0,0.0001826,2]
[380401068,1755735038715,-180.88293131,0.00018776,2]
[380401069,1755735038724,-55.86152592,0.00018807,2]
[380401230,1755735040506,-112.59847408,0.00018807,2]
[380401232,1755735040515,-2000.0,0.00019,2]
[380401234,1755735040526,-2000.0,0.00019,2]
[380401236,1755735040535,-1794.1020263,0.00019,2]
[380401419,1755735046320,-205.8979737,0.00019,2]
[380401420,1755735046330,-909.0521763,0.00019,7]
[380401421,1755735046482,-773.38711411,0.00019,7]
[380401426,1755735854302,152.5,0.00027287,120]
[380401429,1755736054247,217.18587422,0.0002739,120]
[380401449,1755736231960,-480.0,0.00010999,2]
[380401450,1755736231970,-10819.43027431,0.00011,2]
[380401451,1755736231979,-77210.89615734,0.00011,2]
[380401452,1755736231991,-9336.92770797,0.00011,2]
[380401462,1755736237605,-2832.50531289,0.00011,2]
[380401485,1755736239492,-8891.52698353,0.00011,2]
[380401486,1755736239631,-384.11230155,0.00011,2]
[380401487,1755736239647,-267.19580075,0.00011,2]
[380401493,1755736242491,-4973.07117054,0.00011,2]
[380401503,1755736246331,-431.46450647,0.00010998,2]
[380401504,1755736246342,-500.0,0.00010998,2]
[380401505,1755736246351,-184.26723146,0.00010998,2]
[380401506,1755736246365,-200.75997594,0.00010998,2]
[380401507,1755736246375,-298.58575502,0.00010998,2]
[380401508,1755736246384,-6525.12933938,0.00011,2]
[380401509,1755736246432,-1232.99541748,0.00011,2]
[380401510,1755736246443,-2420.15561242,0.00011,2]
[380401511,1755736246475,-746.20517012,0.00011,2]
[380401514,1755736391756,-294.01583222,0.000109,2]
[380401515,1755736401096,-289.28416778,0.000109,2]
[380401516,1755736406812,-50.06268717,0.000109,2]
[380401517,1755736406839,-100.2505132,0.000109,2]
[380401518,1755736406854,-50.06268717,0.000109,2]
[380401519,1755736406875,-49.31091209,0.000109,2]
[380401520,1755736406884,-150.31320037,0.000109,2]
[380401522,1755736414169,-20.57397609,0.000109,2]
[380401523,1755736414199,-150.0,0.00010999,2]
[380401524,1755736414221,-20.57397609,0.00010999,2]
[380401525,1755736414255,-150.0,0.00010999,2]
[380401526,1755736414273,-4406.78269111,0.00010999,2]
[380401529,1755736813449,161.3,0.00025161,120]
[380401530,1755736937651,-11.51142754,0.00010999,2]
[380401531,1755736947228,-332.398604,0.00010999,2]
[380401532,1755736954568,-332.398604,0.00010999,2]
[380401533,1755736962171,-332.398604,0.00010999,2]
[380401577,1755737431771,-192.0,0.00010989,2]
[380401578,1755737431781,-7091.03147184,0.0001099,2]
[380401579,1755737431790,-78137.43237384,0.00011,2]
[380401580,1755737431802,-24884.15449782,0.00011,2]
[380401581,1755737431811,-151.31924293,0.00011,2]
[380401582,1755737431821,-7000.0,0.00011,2]
[380401583,1755737431830,-500.0,0.00011,2]
[380401584,1755737431840,-152.24529618,0.0001279,2]
[380401585,1755737431849,-6077.39,0.000129,2]
[380401586,1755737431858,-170.88717646,0.000129,2]
[380401587,1755737431868,-3121.03680355,0.00013,2]
[380401588,1755737431877,-151.0,0.00013,2]
[380401589,1755737431887,-280.209373,0.00013,2]
[380401590,1755737431897,-151.0,0.00013,2]
[380401591,1755737431906,-151.0,0.00013,2]
[380401592,1755737431916,-280.209373,0.00013,2]
[380401593,1755737431926,-280.209373,0.00013,2]
[380401594,1755737431935,-151.0,0.00013,2]
[380401595,1755737431945,-151.0,0.00013,2]
[380401596,1755737431955,-280.209373,0.00013,2]
[380401597,1755737431964,-151.0,0.00013,2]
[380401598,1755737431973,-151.0,0.00013,2]
[380401599,1755737431983,-151.0,0.00013,2]
[380401600,1755737431993,-151.0,0.00013,2]
[380401601,1755737432002,-151.0,0.00013,2]
[380401602,1755737432012,-151.0,0.00013,2]
[380401603,1755737432021,-223.160252,0.00013,2]
[380401604,1755737432030,-151.0,0.00013,2]
[380401605,1755737432041,-223.160252,0.00013,2]
[380401606,1755737432051,-151.0,0.00013,2]
[380401607,1755737432061,-151.0,0.00013,2]
[380401608,1755737432070,-223.160252,0.00013,2]
[380401609,1755737432080,-151.0,0.00013,2]
[380401610,1755737432089,-223.160252,0.00013,2]
[380401612,1755737432098,-151.237577,0.00013,2]
[380401614,1755737432108,-151.0,0.00013,2]
[380401616,1755737432117,-151.0,0.00013,2]
[380401618,1755737432126,-7000.0,0.00013,2]
[380401620,1755737432136,-151.0,0.00013,2]
[380401622,1755737432145,-151.0,0.00013,2]
[380401626,1755737432155,-245.049422,0.00013,2]
[380401629,1755737432165,-245.049422,0.00013,2]
[380401631,1755737432174,-193.906886,0.00013,2]
[380401633,1755737432183,-254.10269,0.00013,2]
[380401636,1755737432194,-245.049422,0.00013,2]
[380401638,1755737432204,-193.906886,0.00013,2]
[380401640,1755737432213,-245.049422,0.00013,2]
[380401642,1755737432222,-193.906886,0.00013,2]
[380401644,1755737432232,-193.906886,0.00013,2]
[380401646,1755737432241,-151.0,0.00013,2]
[380401648,1755737432250,-4693.110798,0.00013,2]
[380401650,1755737432259,-151.0,0.00013,2]
[380401651,1755737432268,-151.0,0.00013,2]
[380401652,1755737432277,-151.0,0.00013,2]
[380401653,1755737432287,-4693.110798,0.00013,2]
[380401654,1755737432296,-151.0,0.00013,2]
[380401655,1755737432305,-4693.110798,0.00013,2]
[380401656,1755737432315,-190.378075,0.00013,2]
[380401657,1755737432324,-244.627955,0.00013,2]
[380401658,1755737432333,-4693.110798,0.00013,2]
[380401659,1755737432343,-229.914136,0.00013,2]
[380401661,1755737432352,-190.378075,0.00013,2]
[380401662,1755737432361,-151.0,0.00013,2]
[380401664,1755737432371,-229.914136,0.00013,2]
[380401666,1755737432380,-151.0,0.00013,2]
[380401668,1755737432391,-190.378075,0.00013,2]
[380401670,1755737432400,-276.684377,0.00013,2]
[380401672,1755737432409,-229.914136,0.00013,2]
[380401674,1755737432419,-190.378075,0.00013,2]
[380401676,1755737432428,-368.903733,0.00013,2]
[380401678,1755737432438,-229.914136,0.00013,2]
[380401681,1755737432450,-368.903733,0.00013,2]
[380401683,1755737432459,-176.818882,0.00013,2]
[380401685,1755737432470,-368.903733,0.00013,2]
[380401687,1755737432480,-176.818882,0.00013,2]
[380401689,1755737432490,-368.903733,0.00013,2]
[380401691,1755737432501,-176.818882,0.00013,2]
[380401693,1755737432510,-151.0,0.00013,2]
[380401695,1755737432520,-151.0,0.00013,2]
[380401697,1755737432530,-176.818882,0.00013,2]
[380401699,1755737432540,-151.0,0.00013,2]
[380401701,1755737432549,-228.625234,0.00013,2]
[380401703,1755737432559,-151.0,0.00013,2]
[380401705,1755737432568,-151.0,0.00013,2]
[380401707,1755737432577,-177.013246,0.00013,2]
[380401709,1755737432586,-177.013246,0.00013,2]
[380401711,1755737432595,-177.013246,0.00013,2]
[380401713,1755737432605,-177.013246,0.00013,2]
[380401715,1755737432614,-151.0,0.00013,2]
[380401717,1755737432624,-151.0,0.00013,2]
[380401719,1755737432633,-151.0,0.00013,2]
[380401721,1755737432643,-187.216216,0.00013,2]
[380401723,1755737432657,-152.121826,0.00013,2]
[380401725,1755737432666,-386.51106,0.00013,2]
[380401727,1755737432676,-386.51106,0.00013,2]
[380401730,1755737432690,-386.51106,0.00013,2]
[380401732,1755737432704,-386.51106,0.00013,2]
[380401734,1755737432713,-151.0,0.00013,2]
[380401735,1755737432723,-151.0,0.00013,2]
[380401737,1755737432733,-151.0,0.00013,2]
[380401739,1755737432742,-235.821144,0.00013,2]
[380401741,1755737432752,-151.0,0.00013,2]
[380401743,1755737432761,-151.0,0.00013,2]
[380401745,1755737432770,-151.0,0.00013,2]
[380401747,1755737432780,-151.0,0.00013,2]
[380401749,1755737432789,-151.0,0.00013,2]
[380401751,1755737432798,-151.0,0.00013,2]
[380401753,1755737432807,-151.0,0.00013,2]
[380401756,1755737432817,-151.0,0.00013,2]
[380401758,1755737432827,-151.0,0.00013,2]
[380401760,1755737432836,-151.0,0.00013,2]
[380401762,1755737432846,-151.0,0.00013,2]
[380401764,1755737432856,-151.0,0.00013,2]
[380401766,1755737432865,-151.0,0.00013,2]
[380401768,1755737432874,-151.0,0.00013,2]
[380401770,1755737432884,-151.0,0.00013,2]
[380401772,1755737432893,-151.0,0.00013,2]
[380401774,1755737432902,-151.0,0.00013,2]
[380401776,1755737432912,-151.0,0.00013,2]
[380401778,1755737432921,-234.321984,0.00013,2]
[380401780,1755737432929,-151.0,0.00013,2]
[380401782,1755737432939,-151.0,0.00013,2]
[380401784,1755737432949,-151.0,0.00013,2]
[380401786,1755737432959,-151.0,0.00013,2]
[380401788,1755737432968,-151.0,0.00013,2]
[380401790,1755737432978,-151.0,0.00013,2]
[380401792,1755737432987,-151.0,0.00013,2]
[380401794,1755737432996,-151.0,0.00013,2]
[380401796,1755737433006,-151.0,0.00013,2]
[380401798,1755737433015,-151.0,0.00013,2]
[380401800,1755737433025,-151.0,0.00013,2]
[380401802,1755737433036,-151.0,0.00013,2]
[380401804,1755737433046,-159.758689,0.00013,2]
[380401806,1755737433056,-151.0,0.00013,2]
[380401808,1755737433065,-151.0,0.00013,2]
[380401810,1755737433075,-151.0,0.00013,2]
[380401812,1755737433085,-151.0,0.00013,2]
[380401814,1755737433095,-306.52494,0.00013,2]
[380401816,1755737433104,-151.0,0.00013,2]
[380401818,1755737433113,-306.52494,0.00013,2]
[380401820,1755737433123,-151.0,0.00013,2]
[380401822,1755737433134,-151.0,0.00013,2]
[380401824,1755737433143,-151.0,0.00013,2]
[380401826,1755737433153,-151.0,0.00013,2]
[380401827,1755737433163,-151.0,0.00013,2]
[380401828,1755737433172,-265.74445411,0.00013,2]
[380401829,1755737433187,-40.78048589,0.00013,2]
[380401830,1755737433197,-151.0,0.00013,2]
[380401831,1755737433206,-306.52494,0.00013,2]
[380401832,1755737433216,-170.931532,0.00013,2]
[380401833,1755737433226,-174.220456,0.00013,2]
[380401834,1755737433236,-306.52494,0.00013,2]
[380401835,1755737433246,-306.52494,0.00013,2]
[380401836,1755737433255,-151.0,0.00013,2]
[380401837,1755737433265,-151.0,0.00013,2]
[380401838,1755737433275,-306.52494,0.00013,2]
[380401839,1755737433284,-306.52494,0.00013,2]
[380401840,1755737433294,-350.710148,0.00013,2]
[380401841,1755737433303,-350.710148,0.00013,2]
[380401842,1755737433313,-350.710148,0.00013,2]
[380401843,1755737433323,-350.710148,0.00013,2]
[380401844,1755737433332,-151.0,0.00013,2]
[380401845,1755737433341,-350.710148,0.00013,2]
[380401846,1755737433351,-350.710148,0.00013,2]
[380401847,1755737433360,-151.0,0.00013,2]
[380401848,1755737433370,-151.0,0.00013,2]
[380401849,1755737433380,-350.710148,0.00013,2]
[380401850,1755737433389,-151.0,0.00013,2]
[380401851,1755737433399,-350.710148,0.00013,2]
[380401852,1755737433409,-151.0,0.00013,2]
[380401853,1755737433420,-151.0,0.00013,2]
[380401854,1755737433430,-1308.40617,0.00013,2]
[380401855,1755737433439,-1308.40617,0.00013,2]
[380401856,1755737433450,-1308.40617,0.00013,2]
[380401857,1755737433459,-98.15690098,0.00013,2]
[380401858,1755737433471,-1210.24926902,0.00013,2]
[380401859,1755737433480,-242.164717,0.00013,2]
[380401860,1755737433490,-242.164717,0.00013,2]
[380401861,1755737433499,-1308.40617,0.00013,2]
[380401862,1755737433509,-1308.40617,0.00013,2]
[380401863,1755737433518,-242.164717,0.00013,2]
[380401864,1755737433532,-242.164717,0.00013,2]
[380401865,1755737433542,-1308.40617,0.00013,2]
[380401866,1755737433551,-1308.40617,0.00013,2]
[380401867,1755737433561,-242.164717,0.00013,2]
[380401868,1755737433570,-242.164717,0.00013,2]
[380401869,1755737433580,-242.164717,0.00013,2]
[380401870,1755737433590,-242.164717,0.00013,2]
[380401871,1755737433599,-151.284026,0.00013,2]
[380401872,1755737433608,-265.572609,0.00013,2]
[380401873,1755737433618,-265.572609,0.00013,2]
[380401874,1755737433627,-265.572609,0.00013,2]
[380401875,1755737433636,-151.0,0.00013,2]
[380401876,1755737433648,-151.0,0.00013,2]
[380401877,1755737433659,-53.39906481,0.00013,2]
[380401878,1755737433671,-97.60093519,0.00013,2]
[380401879,1755737433681,-151.0,0.00013,2]
[380401880,1755737433692,-151.0,0.00013,2]
[380401881,1755737433701,-151.0,0.00013,2]
[380401882,1755737433711,-151.0,0.00013,2]
[380401883,1755737433720,-151.0,0.00013,2]
[380401884,1755737433731,-151.0,0.00013,2]
[380401885,1755737433740,-151.0,0.00013,2]
[380401886,1755737433750,-151.0,0.00013,2]
[380401887,1755737433759,-151.0,0.00013,2]
[380401888,1755737433769,-151.0,0.00013,2]
[380401889,1755737433778,-151.0,0.00013,2]
[380401890,1755737433787,-151.0,0.00013,2]
[380401891,1755737433797,-185.810883,0.00013,2]
[380401892,1755737433806,-151.0,0.00013,2]
[380401893,1755737433816,-151.0,0.00013,2]
[380401894,1755737433825,-151.0,0.00013,2]
[380401895,1755737433834,-151.0,0.00013,2]
[380401896,1755737433844,-151.0,0.00013,2]
[380401897,1755737433854,-151.0,0.00013,2]
[380401898,1755737433863,-151.0,0.00013,2]
[380401899,1755737433873,-151.0,0.00013,2]
[380401900,1755737433883,-245.615268,0.00013,2]
[380401901,1755737433894,-245.615268,0.00013,2]
[380401902,1755737433904,-151.0,0.00013,2]
[380401903,1755737433914,-245.615268,0.00013,2]
[380401904,1755737433923,-151.0,0.00013,2]
[380401905,1755737433933,-245.615268,0.00013,2]
[380401906,1755737433943,-151.0,0.00013,2]
[380401907,1755737433953,-151.0,0.00013,2]
[380401908,1755737433963,-151.0,0.00013,2]
[380401909,1755737433974,-151.0,0.00013,2]
[380401910,1755737433983,-245.615268,0.00013,2]
[380401911,1755737433994,-151.0,0.00013,2]
[380401912,1755737434004,-151.0,0.00013,2]
[380401913,1755737434013,-245.615268,0.00013,2]
[380401914,1755737434023,-151.0,0.00013,2]
[380401915,1755737434033,-245.615268,0.00013,2]
[380401916,1755737434042,-151.0,0.00013,2]
[380401917,1755737434052,-245.615268,0.00013,2]
[380401918,1755737434061,-151.0,0.00013,2]
[380401919,1755737434071,-151.0,0.00013,2]
[380401920,1755737434081,-151.0,0.00013,2]
[380401921,1755737434091,-151.0,0.00013,2]
[380401922,1755737434102,-245.615268,0.00013,2]
[380401923,1755737434114,-151.0,0.00013,2]
[380401924,1755737434124,-152.2452961,0.00013519,2]
[380401925,1755737434133,-533.49,0.00013699,2]
[380401926,1755737434143,-151.0,0.00013699,2]
[380401927,1755737434153,-380.407563,0.00013699,2]
[380401928,1755737434163,-380.407563,0.00013699,2]
[380401929,1755737434172,-380.407563,0.00013699,2]
[380401930,1755737434181,-380.407563,0.00013699,2]
[380401931,1755737434191,-226.341115,0.00013699,2]
[380401932,1755737434201,-226.341115,0.00013699,2]
[380401933,1755737434211,-226.341115,0.00013699,2]
[380401934,1755737434220,-226.341115,0.00013699,2]
[380401935,1755737434230,-226.341115,0.00013699,2]
[380401936,1755737434240,-226.341115,0.00013699,2]
[380401937,1755737434249,-226.341115,0.00013699,2]
[380401938,1755737434259,-226.341115,0.00013699,2]
[380401939,1755737434268,-151.0,0.0001389,2]
[380401940,1755737434278,-151.0,0.0001389,2]
[380401941,1755737434287,-151.0,0.0001389,2]
[380401942,1755737434296,-211.296205,0.0001389,2]
[380401943,1755737434305,-151.0,0.0001389,2]
[380401944,1755737434315,-211.296205,0.0001389,2]
[380401945,1755737434324,-151.0,0.0001389,2]
[380401946,1755737434333,-211.296205,0.0001389,2]
[380401947,1755737434343,-187.598363,0.0001389,2]
[380401948,1755737434352,-211.296205,0.0001389,2]
[380401949,1755737434361,-151.0,0.0001389,2]
[380401950,1755737434370,-0.25003434,0.0001389,2]
[380401951,1755737434391,-150.74996566,0.0001389,2]
[380401952,1755737434401,-151.0,0.0001389,2]
[380401953,1755737434410,-234.229337,0.0001389,2]
[380401954,1755737434419,-234.229337,0.0001389,2]
[380401955,1755737434429,-234.229337,0.0001389,2]
[380401956,1755737434439,-234.229337,0.0001389,2]
[380401957,1755737434449,-286.416525,0.0001389,2]
[380401958,1755737434458,-151.0,0.0001389,2]
[380401959,1755737434468,-286.416525,0.0001389,2]
[380401960,1755737434478,-286.416525,0.0001389,2]
[380401961,1755737434487,-32.35520665,0.0001389,2]
[380401962,1755737434551,-151.0,0.00013,2]
[380401963,1755737434560,-265.572609,0.00013,2]
[380401964,1755737434570,-118.64479335,0.0001389,2]
[380401965,1755737434580,-151.0,0.0001389,2]
[380401966,1755737434589,-286.416525,0.0001389,2]
[380401967,1755737434598,-239.738135,0.0001389,2]
[380401968,1755737434608,-151.0,0.0001389,2]
[380401969,1755737434616,-146.81569445,0.0001389,2]
[380401970,1755737434628,-4.18430555,0.0001389,2]
[380401971,1755737434637,-151.0,0.0001389,2]
[380401972,1755737434648,-151.0,0.0001389,2]
[380401973,1755737434658,-223.928548,0.0001389,2]
[380401974,1755737434667,-223.928548,0.0001389,2]
[380401975,1755737434676,-223.928548,0.0001389,2]
[380401976,1755737434687,-223.928548,0.0001389,2]
[380401977,1755737434696,-151.0,0.0001389,2]
[380401978,1755737434705,-151.0,0.0001389,2]
[380401979,1755737434714,-151.0,0.0001389,2]
[380401980,1755737434727,-971.588254,0.0001389,2]
[380401981,1755737434736,-814.60444844,0.0001389,2]
[380401983,1755737437783,-176.80850566,0.00012999,2]
[380401984,1755737437794,-222.40401659,0.00012999,2]
[380401985,1755737437810,-314.80947337,0.00012999,2]
[380402085,1755737440586,-342.66,0.00012999,2]
[380402086,1755737440597,-654.6426268,0.00012999,2]
[380402105,1755737443029,-248.40630161,0.00012999,2]
[380402106,1755737443039,-5682.59369839,0.00013,2]
[380402113,1755737445995,-1539.14027129,0.00013,2]
[380402119,1755737446204,-1075.39999999,0.00013,2]
[380402120,1755737480871,-241.95431669,0.00010999,2]
[380402121,1755737481248,-19.65093684,0.00010999,2]
[380402122,1755737481296,-280.34906316,0.00010999,2]
[380402142,1755738573546,-300.0,0.00010958,2]
[380402143,1755738581302,-300.0,0.00010903,2]
[380402144,1755738589990,-424.211753,0.00010903,2]
[380402145,1755738590311,-651.576494,0.00010958,2]
[380402148,1755738632024,-1026.0,0.00010958,2]
[380402149,1755738632034,-248.0,0.00010958,2]
[380402150,1755738632044,-300.0,0.00010958,2]
[380402151,1755738632055,-310.0,0.00010958,2]
[380402152,1755738632064,-150.0,0.00010958,2]
[380402153,1755738632074,-2000.0,0.00010959,2]
[380402154,1755738632085,-200.0,0.00010959,2]
[380402155,1755738632095,-200.0,0.00010959,2]
[380402156,1755738632104,-200.0,0.00010959,2]
[380402157,1755738632114,-200.0,0.00010959,2]
[380402158,1755738632130,-200.0,0.00010959,2]
[380402159,1755738632144,-5000.0,0.00011,2]
[380402160,1755738632155,-310.0,0.00011621,2]
[380402161,1755738632165,-150.0,0.00011621,2]
[380402162,1755738632175,-310.0,0.00012054,2]
[380402163,1755738632185,-250.0,0.00012054,2]
[380402164,1755738632196,-150.0,0.00012054,2]
[380402165,1755738632207,-300.0,0.00012054,2]
[380402166,1755738632217,-250.0,0.00012054,2]
[380402167,1755738632227,-250.0,0.00012355,2]
[380402168,1755738632237,-416.47,0.00012625,2]
[380402169,1755738632247,-1852.42,0.00012629,2]
[380402170,1755738632257,-1510.8,0.00012681,2]
[380402171,1755738632267,-600.0,0.000128,4]
[380402172,1755738632277,-332.3986,0.00012814,2]
[380402173,1755738632287,-152.5,0.00012827,2]
[380402174,1755738632297,-1200.0,0.000129,4]
[380402175,1755738632308,-1203.36,0.0001296,2]
[380402177,1755738632318,-50000.0,0.00013,2]
[380402178,1755738632328,-150.0,0.00013292,2]
[380402179,1755738632337,-150.0,0.00013292,2]
[380402180,1755738632347,-150.0,0.00013292,2]
[380402181,1755738632356,-150.0,0.00013292,2]
[380402182,1755738632366,-150.0,0.00013292,2]
[380402183,1755738632376,-150.0,0.00013292,2]
[380402184,1755738632385,-150.0,0.00013292,2]
[380402185,1755738632395,-521.81042665,0.00013293,2]
[380402186,1755738632404,-500.0,0.00013373,2]
[380402187,1755738632414,-500.0,0.00013373,2]
[380402188,1755738632423,-511.17771888,0.00013373,2]
[380402189,1755738632433,-500.0,0.00013373,2]
[380402190,1755738632443,-500.0,0.00013373,2]
[380402191,1755738632453,-295.68711411,0.00013385,2]
[380402193,1755738632462,-207.55960595,0.00013392,2]
[380402194,1755738632472,-367.3783442,0.00013392,2]
[380402195,1755738632482,-178.57752988,0.00013392,2]
[380402196,1755738632491,-159.0,0.00013392,2]
[380402197,1755738632501,-500.0,0.00013392,2]
[380402198,1755738632511,-278.18519485,0.00013392,2]
[380402199,1755738632520,-516.88365998,0.00013392,2]
[380402200,1755738632530,-150.0,0.00013392,2]
[380402201,1755738632540,-500.0,0.00013392,2]
[380402202,1755738632550,-150.0,0.00013392,2]
[380402203,1755738632559,-500.0,0.00013392,2]
[380402204,1755738632569,-150.0,0.00013392,2]
[380402205,1755738632578,-500.0,0.00013392,2]
[380402206,1755738632588,-150.0,0.00013392,2]
[380402207,1755738632597,-500.0,0.00013392,2]
[380402208,1755738632607,-298.58042141,0.00013392,2]
[380402209,1755738632617,-151.20202708,0.00013392,2]
[380402210,1755738632627,-150.0,0.00013392,2]
[380402211,1755738632637,-59431.08140682,0.00013393,2]
[380402212,1755738633767,-14840.9861621,0.00013393,2]
[380402213,1755738633778,-10922.39636347,0.00013393,2]
[380402214,1755738633790,-7270.74827548,0.00013393,2]
[380402215,1755738633850,-151.31503262,0.00013393,2]
[380402225,1755738638034,-780.25920089,0.00013392,2]
[380402226,1755738638045,-1645.90120313,0.00013393,2]
[380402302,1755738639946,-152.2452961,0.00013293,2]
[380402303,1755738639955,-3922.6047039,0.00013393,2]
[380402354,1755739206670,2500.0,0.00027397,120]
[380402362,1755739669902,-267.601396,0.00010944,2]
[380402363,1755739676833,-267.601396,0.00010944,2]
[380402364,1755739684192,-300.0,0.00010944,2]
[380402365,1755739691806,-102.804188,0.00010944,2]
[380402366,1755739691829,-61.99302,0.00010944,2]
[380402378,1755739832286,-300.0,0.00010971,2]
[380402379,1755739832296,-560.35,0.0001098,2]
[380402380,1755739832306,-300.0,0.00010985,2]
[380402381,1755739832315,-1001.44017944,0.00010999,2]
[380402382,1755739832325,-300.0,0.00010999,2]
[380402383,1755739832334,-150.0,0.00010999,2]
[380402384,1755739832344,-161.8452463,0.00010999,2]
[380402385,1755739832353,-459.0,0.00010999,2]
[380402386,1755739832362,-567.03323564,0.00010999,2]
[380402387,1755739832371,-57455.32911449,0.00011,2]
[380402388,1755739832461,-260.69730376,0.00010999,2]
[380402389,1755739832471,-885.60146843,0.00011,2]
[380402390,1755739832483,-1947.09727889,0.00011,2]
[380402400,1755739832647,-107389.08510853,0.00011,2]
[380402402,1755739832657,-9435.54903075,0.00011,2]
[380402404,1755739832673,-863.55272111,0.00011,2]
[380402474,1755739838239,-175.28976755,0.000109,2]
[380402475,1755739838251,-689.79355804,0.00011,2]
[380402476,1755739838264,-18425.65760198,0.00011,2]
[380402482,1755739842203,-2803.69893592,0.00011,2]
[380402483,1755739842217,-16661.10436432,0.00011,2]
[380402487,1755739843544,-253756.62415447,0.00011,2]
[380402488,1755739843652,-380.02229781,0.00011,2]
[380402500,1755739846326,-19461.1020117,0.00011,2]
[380402505,1755739967106,160.0,0.00011686,7]
[380402509,1755740114004,1314.26,0.00027397,120]
[380402516,1755740453500,1152.0,9.502e-05,2]
[380402518,1755740617368,-150.0,0.0001,2]
[380402563,1755741031724,-1832.71,9.938e-05,2]
[380402564,1755741031734,-310.0,9.941e-05,2]
[380402565,1755741031743,-250.0,9.941e-05,2]
[380402566,1755741031753,-150.0,9.941e-05,2]
[380402567,1755741031762,-1034.94857328,9.945e-05,2]
[380402568,1755741031774,-660.03142672,9.945e-05,2]
[380402570,1755741031783,-1000.0,9.956e-05,2]
[380402572,1755741031792,-150.0,0.00010053,2]
[380402574,1755741031802,-200.2879,0.00010103,2]
[380402576,1755741031811,-165.99,0.0001015,2]
[380402578,1755741031820,-250.0,0.0001015,2]
[380402579,1755741031829,-1167.43036037,0.00010203,2]
[380402581,1755741031841,-80.26963963,0.00010203,2]
[380402583,1755741031850,-168.44,0.00010243,2]
[380402585,1755741031859,-1200.0,0.00010601,2]
[380402587,1755741031869,-507.24539818,0.000107,3]
[380402592,1755741031905,-92.75460182,0.000107,3]
[380402594,1755741031914,-161.47,0.00010709,2]
[380402596,1755741031924,-161.47,0.00010725,2]